[Event "26th Hit Open-A 2022"]
[Site "Nova Gorica"]
[Date "2022.09.18"]
[Round "4.41"]
[White "Novak, Simona"]
[Black "Labrovic, Jakov"]
[Result "0-1"]
[ECO "C46"]
[WhiteElo "1692"]
[BlackElo "1882"]
[Annotator "NA COMBH"]
[PlyCount "104"]
[EventDate "2022.09.16"]
[EventType "swiss"]
[EventCountry "SLO"]
[SourceTitle "playchess.com"]
[Source "ChessBase"]
[SourceQuality "1"]
[TimeControl "5400+30"]

1. e4 {[%emt 0:00:54]} e5 {[%emt 0:00:24]} 2. Nf3 {[%emt 0:01:39]} Nc6 {[%emt 0:00:09]} 3. Nc3 {[%emt 0:00:12]} Bc5 {[%emt 0:00:55]} 4. Nxe5 {[%emt 0:02:14]} Bxf2+ {[%emt 0:03:43]} 5. Kxf2 {[%emt 0:00:05]} Nxe5 {[%emt 0:00:44]} 6. d4 {[%emt 0:01:30]} Ng6 {[%emt 0:05:20]} 7. Bc4 {[%emt 0:04:13]} Nh6 {[%emt 0:01:34]} 8. Rf1 {[%emt 0:01:39]} d5 {[%emt 0:12:57]} 9. Nxd5 {[%emt 0:09:35]} Bg4 {[%emt 0:07:08]} 10. Qd3 {[%emt 0:01:43]} c6 {[%emt 0:03:06]} 11. Nc3 {[%emt 0:00:59]} b5 {[%emt 0:13:43]} 12. Bb3 {[%emt 0:05:39]} b4 {[%emt 0:06:12]} 13. Na4 {[%emt 0:02:21]} Qh4+ {[%emt 0:09:07]} 14. Qg3 {[%emt 0:01:22]} Be6 {[%emt 0:05:48]} 15. Qxh4 {[%emt 0:01:13]} Nxh4 {[%emt 0:00:12]} 16. Bxh6 {[%emt 0:02:54]} gxh6 {[%emt 0:00:02]} 17. g3 {[%emt 0:03:43]} Ng6 {[%emt 0:00:53]} 18. Bxe6 {[%emt 0:00:24]} fxe6 {[%emt 0:00:27]} 19. Nc5 {[%emt 0:00:02]} Ke7 {[%emt 0:00:31]} 20. Na6 {[%emt 0:00:35]} Rad8 {[%emt 0:01:23]} 21. Ke3 {[%emt 0:00:33]} e5 {[%emt 0:00:50]} 22. dxe5 {[%emt 0:00:54]} Nxe5 {[%emt 0:00:25]} 23. Nxb4 {[%emt 0:02:09]} Nc4+ {[%emt 0:04:22]} 24. Kf4 {[%emt 0:00:24]} Rdf8+ {[%emt 0:00:52]} 25. Kg4 {[%emt 0:01:19]} Ne3+ {[%emt 0:00:29]} 26. Kh3 {[%emt 0:01:22]} Rxf1 {[%emt 0:00:19]} 27. Rxf1 {[%emt 0:01:05]} Nxf1 {[%emt 0:00:03]} 28. Nxc6+ {[%emt 0:00:11]} Kd7 {[%emt 0:00:32]} 29. Ne5+ {[%emt 0:00:30]} Ke6 {[%emt 0:00:35]} 30. Nc4 {[%emt 0:00:05]} Rd8 {[%emt 0:00:54]} 31. c3 {[%emt 0:01:37]} Nd2 {[%emt 0:00:34]} 32. Ne3 {[%emt 0:00:17]} Nxe4 {[%emt 0:00:37]} 33. a4 {[%emt 0:00:38]} Rd2 {[%emt 0:00:45]} 34. Nc4 {[%emt 0:00:28]} Ng5+ {[%emt 0:00:46]} 35. Kg4 {[%emt 0:00:41]} Rxh2 {[%emt 0:00:19]} 36. a5 {[%emt 0:00:16]} Ne4 {[%emt 0:01:14]} 37. Kf4 {[%emt 0:03:59]} Nd6 {[%emt 0:00:40]} 38. Ne3 {[%emt 0:10:19]} Rxb2 {[%emt 0:00:40]} 39. Ng4 {[%emt 0:00:12]} Nf7 {[%emt 0:00:29]} 40. Ke3 {[%emt 0:01:49]} h5 {[%emt 0:01:09]} 41. Nf2 {[%emt 0:00:24]} Rxf2 {[%emt 0:00:16]} 42. Kxf2 {[%emt 0:00:03]} Kd5 {[%emt 0:00:30]} 43. Ke3 {[%emt 0:00:26]} Ne5 {[%emt 0:01:42]} 44. Kf4 {[%emt 0:01:43]} h6 {[%emt 0:00:26]} 45. Kf5 {[%emt 0:01:00]} a6 {[%emt 0:00:35]} 46. c4+ {[%emt 0:02:38]} Nxc4 {[%emt 0:00:20]} 47. Kg6 {[%emt 0:00:05]} Nxa5 {[%emt 0:00:14]} 48. Kxh6 {[%emt 0:00:10]} Nc4 {[%emt 0:00:26]} 49. Kxh5 {[%emt 0:00:03]} a5 {[%emt 0:00:15]} 50. g4 {[%emt 0:00:09]} a4 {[%emt 0:00:28]} 51. g5 {[%emt 0:00:01]} Ne5 {[%emt 0:00:19]} 52. g6 {[%emt 0:03:35]} Nxg6 {[%emt 0:01:07]} 0-1

[Event "26th Hit Open-A 2022"]
[Site "Nova Gorica"]
[Date "2022.09.18"]
[Round "4.42"]
[White "Azinovic, Igor"]
[Black "Cokan, Mirko"]
[Result "1/2-1/2"]
[ECO "C44"]
[WhiteElo "1814"]
[BlackElo "1683"]
[Annotator "NA COMBH"]
[PlyCount "42"]
[EventDate "2022.09.16"]
[EventType "swiss"]
[EventCountry "SLO"]
[SourceTitle "playchess.com"]
[Source "ChessBase"]
[SourceQuality "1"]
[TimeControl "5400+30"]

1. e4 {[%emt 0:00:20]} e5 {[%emt 0:00:37]} 2. Nf3 {[%emt 0:00:14]} Nc6 {[%emt 0:00:17]} 3. c3 {[%emt 0:00:23]} f5 {[%emt 0:00:32]} 4. exf5 {[%emt 0:01:21]} d5 {[%emt 0:01:08]} 5. Bb5 {[%emt 0:04:08]} Bd6 {[%emt 0:01:09]} 6. O-O {[%emt 0:02:32]} Nf6 {[%emt 0:00:44]} 7. d4 {[%emt 0:09:24]} e4 {[%emt 0:03:04]} 8. Ne5 {[%emt 0:00:28]} Bd7 {[%emt 0:00:42]} 9. Bxc6 {[%emt 0:03:37]} bxc6 {[%emt 0:00:58]} 10. f3 {[%emt 0:04:59]} O-O {[%emt 0:03:11]} 11. fxe4 {[%emt 0:02:50]} Nxe4 {[%emt 0:04:00]} 12. Qg4 {[%emt 0:02:23]} Nf6 {[%emt 0:04:55]} 13. Qh4 {[%emt 0:06:47]} Ne4 {[%emt 0:05:30]} 14. Qh3 {[%emt 0:01:34]} Qc8 {[%emt 0:03:46]} 15. g4 {[%emt 0:01:57]} c5 {[%emt 0:01:17]} 16. Nd2 {[%emt 0:04:48]} cxd4 {[%emt 0:08:13]} 17. Nxe4 {[%emt 0:00:53]} dxe4 {[%emt 0:02:26]} 18. cxd4 {[%emt 0:00:15]} Rb8 {[%emt 0:01:06]} 19. b3 {[%emt 0:02:17]} Bb5 {[%emt 0:00:46]} 20. Re1 {[%emt 0:04:10]} Bxe5 {[%emt 0:01:20]} 21. dxe5 {[%emt 0:00:38]} Bd3 {[%emt 0:02:57]} 1/2-1/2

[Event "26th Hit Open-A 2022"]
[Site "Nova Gorica"]
[Date "2022.09.18"]
[Round "4.43"]
[White "Di Lascio, Savino"]
[Black "Savoia, Serge"]
[Result "1-0"]
[ECO "A04"]
[WhiteElo "1793"]
[BlackElo "1636"]
[Annotator "NA COMBH"]
[PlyCount "135"]
[EventDate "2022.09.16"]
[EventType "swiss"]
[EventCountry "SLO"]
[SourceTitle "playchess.com"]
[Source "ChessBase"]
[SourceQuality "1"]
[TimeControl "5400+30"]

1. Nf3 {[%emt 0:00:05]} d6 {[%emt 0:53:55]} 2. g3 {[%emt 0:01:34]} g6 {[%emt 0:00:34]} 3. Bg2 {[%emt 0:01:09]} Bg7 {[%emt 0:00:16]} 4. O-O {[%emt 0:00:25]} c6 {[%emt 0:00:13]} 5. a4 {[%emt 0:01:18]} a5 {[%emt 0:00:33]} 6. d3 {[%emt 0:00:34]} Na6 {[%emt 0:00:30]} 7. Nbd2 {[%emt 0:01:16]} e5 {[%emt 0:00:38]} 8. e4 {[%emt 0:01:29]} Nb4 {[%emt 0:01:01]} 9. Nc4 {[%emt 0:01:16]} b5 {[%emt 0:01:14]} 10. axb5 {[%emt 0:01:47]} cxb5 {[%emt 0:00:09]} 11. Ne3 {[%emt 0:03:15]} Ne7 {[%emt 0:00:31]} 12. Bd2 {[%emt 0:00:24]} Nec6 {[%emt 0:01:07]} 13. Nd5 {[%emt 0:00:54]} Nxd5 {[%emt 0:01:54]} 14. exd5 {[%emt 0:00:16]} Ne7 {[%emt 0:00:13]} 15. c4 {[%emt 0:02:46]} Bd7 {[%emt 0:01:33]} 16. Ng5 {[%emt 0:02:11]} O-O {[%emt 0:01:36]} 17. Ne4 {[%emt 0:00:30]} Qb6 {[%emt 0:02:48]} 18. Bh6 {[%emt 0:02:47]} f5 {[%emt 0:01:01]} 19. Bxg7 {[%emt 0:00:27]} Kxg7 {[%emt 0:00:15]} 20. Ng5 {[%emt 0:00:48]} Rac8 {[%emt 0:01:12]} 21. b3 {[%emt 0:02:10]} b4 {[%emt 0:00:49]} 22. Ra2 {[%emt 0:01:07]} h6 {[%emt 0:02:12]} 23. Nf3 {[%emt 0:00:52]} g5 {[%emt 0:00:47]} 24. Re2 {[%emt 0:01:11]} Ng6 {[%emt 0:00:53]} 25. Nd2 {[%emt 0:00:47]} f4 {[%emt 0:00:32]} 26. gxf4 {[%emt 0:02:04]} Nxf4 {[%emt 0:00:27]} 27. Re3 {[%emt 0:00:23]} Nxg2 {[%emt 0:01:47]} 28. Kxg2 {[%emt 0:00:30]} Rf4 {[%emt 0:00:25]} 29. Ne4 {[%emt 0:02:28]} Rcf8 {[%emt 0:01:07]} 30. Qd2 {[%emt 0:01:15]} Bf5 {[%emt 0:03:38]} 31. Ng3 {[%emt 0:03:44]} Bg6 {[%emt 0:01:05]} 32. h3 {[%emt 0:02:10]} h5 {[%emt 0:01:13]} 33. Ne2 {[%emt 0:01:29]} R4f7 {[%emt 0:01:26]} 34. d4 {[%emt 0:01:20]} e4 {[%emt 0:01:55]} 35. Rg3 {[%emt 0:03:47]} g4 {[%emt 0:02:30]} 36. hxg4 {[%emt 0:00:31]} h4 {[%emt 0:00:41]} 37. Re3 {[%emt 0:02:28]} Qc7 {[%emt 0:01:21]} 38. Ng1 {[%emt 0:00:52]} Qd7 {[%emt 0:00:31]} 39. Kh3 {[%emt 0:02:45]} Bh5 {[%emt 0:00:35]} 40. Rxe4 {[%emt 0:00:21]} a4 {[%emt 0:03:38]} 41. bxa4 {[%emt 0:00:45]} b3 {[%emt 0:00:12]} 42. Re6 {[%emt 0:00:18]} Bg6 {[%emt 0:01:02]} 43. f4 {[%emt 0:01:11]} Qxa4 {[%emt 0:02:22]} 44. f5 {[%emt 0:00:18]} Rf6 {[%emt 0:02:02]} 45. Qg5 {[%emt 0:03:10]} Qxc4 {[%emt 0:00:47]} 46. Rf3 {[%emt 0:03:34]} Qxd5 {[%emt 0:01:42]} 47. Rxf6 {[%emt 0:01:37]} Rxf6 {[%emt 0:00:17]} 48. Qe3 {[%emt 0:00:35]} Bxf5 {[%emt 0:00:46]} 49. Qg5+ {[%emt 0:05:10]} Kf7 {[%emt 0:00:39]} 50. Qh5+ {[%emt 0:04:35]} Ke7 {[%emt 0:00:34]} 51. Re3+ {[%emt 0:02:10]} Re6 {[%emt 0:02:14]} 52. Qg5+ {[%emt 0:02:40]} Kd7 {[%emt 0:01:31]} 53. Qg7+ {[%emt 0:03:34]} Kc6 {[%emt 0:00:08]} 54. Rc3+ {[%emt 0:01:20]} Kb5 {[%emt 0:00:49]} 55. Nf3 {[%emt 0:02:51]} Rg6 {[%emt 0:01:51]} 56. Qf8 {[%emt 0:02:42]} Bxg4+ {[%emt 0:00:17]} 57. Kh2 {[%emt 0:00:38]} Kb4 {[%emt 0:00:47]} 58. Re3 {[%emt 0:01:25]} Rg8 {[%emt 0:00:03]} 59. Qf4 {[%emt 0:02:59]} Bxf3 {[%emt 0:00:41]} 60. Rxf3 {[%emt 0:00:25]} Rg3 {[%emt 0:01:42]} 61. Qd2+ {[%emt 0:00:49]} Kb5 {[%emt 0:00:23]} 62. Rf8 {[%emt 0:02:05]} Qg5 {[%emt 0:00:22]} 63. Qe2+ {[%emt 0:01:39]} Kc6 {[%emt 0:00:24]} 64. Qc4+ {[%emt 0:03:37]} Kb7 {[%emt 0:01:09]} 65. Rf7+ {[%emt 0:04:37]} Kb6 {[%emt 0:00:07]} 66. Qb4+ {[%emt 0:01:28]} Qb5 {[%emt 0:00:31]} 67. Qxd6+ {[%emt 0:01:19]} Qc6 {[%emt 0:00:04]} 68. Qb8+ {[%emt 0:02:13]} 1-0

[Event "26th Hit Open-A 2022"]
[Site "Nova Gorica"]
[Date "2022.09.18"]
[Round "4.44"]
[White "Vicic, Mark"]
[Black "Fiolo, Costanza"]
[Result "1-0"]
[ECO "A48"]
[WhiteElo "1641"]
[BlackElo "1768"]
[Annotator "NA COMBH"]
[PlyCount "69"]
[EventDate "2022.09.16"]
[EventType "swiss"]
[EventCountry "SLO"]
[SourceTitle "playchess.com"]
[Source "ChessBase"]
[SourceQuality "1"]
[TimeControl "5400+30"]

1. d4 {[%emt 0:00:06]} Nf6 {[%emt 0:00:08]} 2. Nf3 {[%emt 0:00:12]} g6 {[%emt 0:00:16]} 3. Bf4 {[%emt 0:00:08]} d5 {[%emt 0:00:16]} 4. Nbd2 {[%emt 0:00:43]} Bg7 {[%emt 0:00:46]} 5. e3 {[%emt 0:00:15]} O-O {[%emt 0:01:46]} 6. Bd3 {[%emt 0:01:19]} b6 {[%emt 0:00:49]} 7. c3 {[%emt 0:00:22]} c5 {[%emt 0:01:48]} 8. O-O {[%emt 0:00:47]} Nc6 {[%emt 0:00:48]} 9. h3 {[%emt 0:00:54]} Bb7 {[%emt 0:00:14]} 10. Bh2 {[%emt 0:01:22]} Nd7 {[%emt 0:00:50]} 11. e4 {[%emt 0:05:08]} dxe4 {[%emt 0:01:29]} 12. Bxe4 {[%emt 0:00:17]} Nf6 {[%emt 0:05:36]} 13. dxc5 {[%emt 0:03:20]} bxc5 {[%emt 0:02:34]} 14. Bc2 {[%emt 0:00:55]} Qc8 {[%emt 0:04:30]} 15. Re1 {[%emt 0:02:38]} Rd8 {[%emt 0:01:17]} 16. Qe2 {[%emt 0:00:40]} Ba6 {[%emt 0:01:40]} 17. Qe3 {[%emt 0:00:16]} Nd7 {[%emt 0:09:26]} 18. Be4 {[%emt 0:02:54]} Re8 {[%emt 0:02:47]} 19. Ng5 {[%emt 0:03:31]} Bb7 {[%emt 0:07:21]} 20. Nxf7 {[%emt 0:06:14]} Kxf7 {[%emt 0:05:56]} 21. Bd5+ {[%emt 0:00:12]} e6 {[%emt 0:06:19]} 22. Bxe6+ {[%emt 0:00:24]} Kf8 {[%emt 0:01:06]} 23. Bd6+ {[%emt 0:01:55]} Ne7 {[%emt 0:02:05]} 24. Qf4+ {[%emt 0:00:13]} Bf6 {[%emt 0:01:39]} 25. Bxd7 {[%emt 0:00:12]} Qxd7 {[%emt 0:00:25]} 26. Qxf6+ {[%emt 0:00:10]} Kg8 {[%emt 0:00:39]} 27. Rxe7 {[%emt 0:00:50]} Rxe7 {[%emt 0:00:15]} 28. Qxe7 {[%emt 0:00:09]} Qc6 {[%emt 0:03:15]} 29. Qe6+ {[%emt 0:00:29]} Kg7 {[%emt 0:00:39]} 30. Be5+ {[%emt 0:01:12]} Kh6 {[%emt 0:00:56]} 31. Qg4 {[%emt 0:03:16]} g5 {[%emt 0:01:39]} 32. Nf3 {[%emt 0:00:22]} Rg8 {[%emt 0:02:03]} 33. Nh4 {[%emt 0:12:55]} Qd5 {[%emt 0:01:17]} 34. Nf5+ {[%emt 0:00:14]} Kg6 {[%emt 0:01:57]} 35. Ne7+ {[%emt 0:00:04]} 1-0

[Event "26th Hit Open-A 2022"]
[Site "Nova Gorica"]
[Date "2022.09.18"]
[Round "4.45"]
[White "Mocic, Ivano"]
[Black "Zlatanovic, Srdjan"]
[Result "0-1"]
[ECO "E16"]
[WhiteElo "1672"]
[BlackElo "1740"]
[Annotator "NA COMBH"]
[PlyCount "106"]
[EventDate "2022.09.16"]
[EventType "swiss"]
[EventCountry "SLO"]
[SourceTitle "playchess.com"]
[Source "ChessBase"]
[SourceQuality "1"]
[TimeControl "5400+30"]

1. d4 {[%emt 0:00:03]} Nf6 {[%emt 0:02:20]} 2. c4 {[%emt 0:00:20]} e6 {[%emt 0:00:06]} 3. Nf3 {[%emt 0:01:15]} Bb4+ {[%emt 0:00:08]} 4. Bd2 {[%emt 0:00:30]} Qe7 {[%emt 0:00:14]} 5. g3 {[%emt 0:00:57]} b6 {[%emt 0:01:01]} 6. Bg2 {[%emt 0:01:40]} Bb7 {[%emt 0:01:02]} 7. O-O {[%emt 0:01:16]} Bxd2 {[%emt 0:00:06]} 8. Nbxd2 {[%emt 0:02:20]} Nc6 {[%emt 0:01:57]} 9. e4 {[%emt 0:03:48]} O-O {[%emt 0:04:07]} 10. Qe2 {[%emt 0:06:15]} h6 {[%emt 0:07:32]} 11. Rfe1 {[%emt 0:04:24]} Nh7 {[%emt 0:09:34]} 12. d5 {[%emt 0:05:49]} Nb4 {[%emt 0:03:14]} 13. a3 {[%emt 0:02:04]} Nc2 {[%emt 0:00:21]} 14. Qd3 {[%emt 0:01:39]} Nxa1 {[%emt 0:00:14]} 15. Rxa1 {[%emt 0:00:01]} Ng5 {[%emt 0:01:50]} 16. Nxg5 {[%emt 0:02:57]} Qxg5 {[%emt 0:00:55]} 17. f4 {[%emt 0:02:44]} Qe7 {[%emt 0:00:07]} 18. Re1 {[%emt 0:10:17]} Rfe8 {[%emt 0:01:02]} 19. Nf3 {[%emt 0:03:42]} Rad8 {[%emt 0:02:03]} 20. Kh1 {[%emt 0:04:00]} exd5 {[%emt 0:03:21]} 21. cxd5 {[%emt 0:04:19]} a5 {[%emt 0:04:50]} 22. Nd2 {[%emt 0:06:10]} a4 {[%emt 0:04:06]} 23. Rc1 {[%emt 0:02:59]} d6 {[%emt 0:01:44]} 24. Qd4 {[%emt 0:04:00]} Qd7 {[%emt 0:01:42]} 25. f5 {[%emt 0:03:47]} f6 {[%emt 0:01:36]} 26. Nf3 {[%emt 0:01:58]} Ra8 {[%emt 0:00:45]} 27. Nh4 {[%emt 0:00:42]} Ra5 {[%emt 0:00:14]} 28. Ng6 {[%emt 0:01:34]} Rc5 {[%emt 0:00:18]} 29. Rxc5 {[%emt 0:03:16]} dxc5 {[%emt 0:00:34]} 30. Qc4 {[%emt 0:01:54]} Qf7 {[%emt 0:03:16]} 31. Nf4 {[%emt 0:04:46]} c6 {[%emt 0:00:56]} 32. Ne6 {[%emt 0:01:36]} cxd5 {[%emt 0:01:08]} 33. exd5 {[%emt 0:00:00]} Qd7 {[%emt 0:01:52]} 34. d6 {[%emt 0:05:13]} Bxg2+ {[%emt 0:01:26]} 35. Kxg2 {[%emt 0:00:01]} Qc6+ {[%emt 0:00:20]} 36. Kg1 {[%emt 0:01:09]} Kh8 {[%emt 0:02:42]} 37. Qf4 {[%emt 0:02:46]} Qd7 {[%emt 0:03:34]} 38. Kg2 {[%emt 0:02:06]} b5 {[%emt 0:02:02]} 39. Kg1 {[%emt 0:01:02]} c4 {[%emt 0:00:08]} 40. Qd4 {[%emt 0:00:29]} Rc8 {[%emt 0:03:13]} 41. Qb6 {[%emt 0:01:49]} c3 {[%emt 0:04:25]} 42. bxc3 {[%emt 0:00:19]} Rxc3 {[%emt 0:00:42]} 43. Qb8+ {[%emt 0:01:24]} Rc8 {[%emt 0:00:22]} 44. Qb6 {[%emt 0:00:31]} Kg8 {[%emt 0:01:43]} 45. h3 {[%emt 0:01:34]} Rc1+ {[%emt 0:01:29]} 46. Kh2 {[%emt 0:00:44]} Qc8 {[%emt 0:00:35]} 47. Nf4 {[%emt 0:00:49]} Qc2+ {[%emt 0:00:55]} 48. Ng2 {[%emt 0:00:01]} Qxf5 {[%emt 0:00:17]} 49. Qd8+ {[%emt 0:00:42]} Kh7 {[%emt 0:00:11]} 50. h4 {[%emt 0:00:58]} Qf1 {[%emt 0:01:09]} 51. g4 {[%emt 0:00:12]} Qh1+ {[%emt 0:00:25]} 52. Kg3 {[%emt 0:00:01]} Rc3+ {[%emt 0:00:38]} 53. Kf2 {[%emt 0:00:02]} Rc2+ {[%emt 0:00:16]} 0-1

[Event "26th Hit Open-A 2022"]
[Site "Nova Gorica"]
[Date "2022.09.18"]
[Round "4.46"]
[White "Hellsten, Uffe"]
[Black "Zlatanovic, Marcus"]
[Result "0-1"]
[ECO "B22"]
[WhiteElo "1732"]
[BlackElo "1636"]
[Annotator "NA COMBH"]
[PlyCount "108"]
[EventDate "2022.09.16"]
[EventType "swiss"]
[EventCountry "SLO"]
[SourceTitle "playchess.com"]
[Source "ChessBase"]
[SourceQuality "1"]
[TimeControl "5400+30"]

1. e4 {[%emt 0:00:04]} c5 {[%emt 0:01:39]} 2. c3 {[%emt 0:00:11]} d5 {[%emt 0:00:04]} 3. exd5 {[%emt 0:00:08]} Qxd5 {[%emt 0:00:04]} 4. d4 {[%emt 0:00:10]} Nc6 {[%emt 0:00:09]} 5. Nf3 {[%emt 0:00:45]} Bf5 {[%emt 0:00:28]} 6. Bd3 {[%emt 0:05:44]} Bxd3 {[%emt 0:04:23]} 7. Qxd3 {[%emt 0:00:08]} cxd4 {[%emt 0:00:06]} 8. cxd4 {[%emt 0:06:40]} Nb4 {[%emt 0:00:17]} 9. Qe2 {[%emt 0:02:56]} Rc8 {[%emt 0:00:08]} 10. Nc3 {[%emt 0:00:45]} Qd7 {[%emt 0:00:54]} 11. O-O {[%emt 0:03:18]} e6 {[%emt 0:00:10]} 12. Bf4 {[%emt 0:08:48]} Nf6 {[%emt 0:04:42]} 13. Rfd1 {[%emt 0:08:34]} Nbd5 {[%emt 0:02:49]} 14. Nxd5 {[%emt 0:03:41]} Nxd5 {[%emt 0:00:10]} 15. Bg3 {[%emt 0:04:21]} Bd6 {[%emt 0:00:45]} 16. Ne5 {[%emt 0:01:28]} Bxe5 {[%emt 0:00:13]} 17. Bxe5 {[%emt 0:02:52]} O-O {[%emt 0:00:59]} 18. Qg4 {[%emt 0:04:24]} f6 {[%emt 0:00:20]} 19. Bg3 {[%emt 0:00:10]} Rc2 {[%emt 0:00:45]} 20. Re1 {[%emt 0:03:05]} Rfc8 {[%emt 0:05:06]} 21. h4 {[%emt 0:09:00]} R8c6 {[%emt 0:01:32]} 22. Re2 {[%emt 0:06:36]} Ne7 {[%emt 0:03:37]} 23. Rae1 {[%emt 0:05:06]} Rxe2 {[%emt 0:00:16]} 24. Rxe2 {[%emt 0:00:39]} Nf5 {[%emt 0:00:10]} 25. Rd2 {[%emt 0:05:56]} Rc4 {[%emt 0:03:07]} 26. Bb8 {[%emt 0:02:49]} b6 {[%emt 0:00:12]} 27. Qe4 {[%emt 0:05:30]} Rxd4 {[%emt 0:00:52]} 28. Rxd4 {[%emt 0:00:47]} Nxd4 {[%emt 0:00:04]} 29. Qa8 {[%emt 0:01:08]} Qc8 {[%emt 0:07:36]} 30. Qe4 {[%emt 0:02:40]} Nc6 {[%emt 0:07:13]} 31. Bf4 {[%emt 0:02:40]} Qd7 {[%emt 0:00:10]} 32. Be3 {[%emt 0:00:49]} Qd5 {[%emt 0:00:24]} 33. Qa4 {[%emt 0:00:33]} h6 {[%emt 0:00:51]} 34. h5 {[%emt 0:02:14]} Qd7 {[%emt 0:02:18]} 35. Qg4 {[%emt 0:01:11]} Ne5 {[%emt 0:00:13]} 36. Qg3 {[%emt 0:00:12]} Qd1+ {[%emt 0:00:11]} 37. Kh2 {[%emt 0:00:15]} Qxh5+ {[%emt 0:00:05]} 38. Kg1 {[%emt 0:00:15]} Qd1+ {[%emt 0:00:55]} 39. Kh2 {[%emt 0:00:06]} Ng4+ {[%emt 0:00:19]} 40. Kh3 {[%emt 0:00:13]} Nxe3 {[%emt 0:01:00]} 41. Qxe3 {[%emt 0:00:32]} Qh5+ {[%emt 0:00:14]} 42. Kg3 {[%emt 0:00:14]} Qg5+ {[%emt 0:00:09]} 43. Qxg5 {[%emt 0:00:10]} hxg5 {[%emt 0:00:04]} 44. Kg4 {[%emt 0:00:16]} Kf7 {[%emt 0:00:09]} 45. g3 {[%emt 0:00:28]} Kg6 {[%emt 0:00:09]} 46. b4 {[%emt 0:00:24]} f5+ {[%emt 0:00:07]} 47. Kf3 {[%emt 0:00:38]} Kf6 {[%emt 0:00:03]} 48. a4 {[%emt 0:00:07]} Ke5 {[%emt 0:00:06]} 49. a5 {[%emt 0:00:05]} bxa5 {[%emt 0:00:14]} 50. bxa5 {[%emt 0:00:06]} Kd4 {[%emt 0:00:20]} 51. a6 {[%emt 0:01:08]} e5 {[%emt 0:00:18]} 52. g4 {[%emt 0:00:38]} g6 {[%emt 0:00:05]} 53. Kg3 {[%emt 0:00:15]} f4+ {[%emt 0:00:17]} 54. Kg2 {[%emt 0:00:33]} Ke4 {[%emt 0:00:08]} 0-1

[Event "26th Hit Open-A 2022"]
[Site "Nova Gorica"]
[Date "2022.09.18"]
[Round "4.47"]
[White "Mihelj, Edvard"]
[Black "Gamal, Alaa"]
[Result "0-1"]
[ECO "B21"]
[WhiteElo "1657"]
[BlackElo "1693"]
[Annotator "NA COMBH"]
[PlyCount "88"]
[EventDate "2022.09.16"]
[EventType "swiss"]
[EventCountry "SLO"]
[SourceTitle "playchess.com"]
[Source "ChessBase"]
[SourceQuality "1"]
[TimeControl "5400+30"]

1. e4 {[%emt 0:00:04]} d5 {[%emt 0:05:16]} 2. e5 {[%emt 0:00:49]} c5 {[%emt 0:00:20]} 3. f4 {[%emt 0:01:57]} Nc6 {[%emt 0:00:47]} 4. Nf3 {[%emt 0:00:39]} Bg4 {[%emt 0:00:13]} 5. Be2 {[%emt 0:00:52]} e6 {[%emt 0:00:14]} 6. O-O {[%emt 0:00:45]} g6 {[%emt 0:00:28]} 7. Nc3 {[%emt 0:00:30]} a6 {[%emt 0:00:06]} 8. a3 {[%emt 0:01:22]} Bg7 {[%emt 0:00:18]} 9. d3 {[%emt 0:01:42]} Nge7 {[%emt 0:00:08]} 10. Qe1 {[%emt 0:01:17]} Nf5 {[%emt 0:00:11]} 11. Qf2 {[%emt 0:05:15]} Bxf3 {[%emt 0:00:27]} 12. Bxf3 {[%emt 0:01:05]} Ncd4 {[%emt 0:00:12]} 13. g4 {[%emt 0:07:05]} Nxf3+ {[%emt 0:02:19]} 14. Qxf3 {[%emt 0:00:36]} Nh4 {[%emt 0:00:25]} 15. Qf2 {[%emt 0:02:21]} Rc8 {[%emt 0:00:24]} 16. Ne2 {[%emt 0:01:13]} h5 {[%emt 0:00:58]} 17. g5 {[%emt 0:00:53]} Nf5 {[%emt 0:01:33]} 18. h4 {[%emt 0:02:49]} O-O {[%emt 0:03:18]} 19. Kh2 {[%emt 0:00:29]} Qc7 {[%emt 0:02:14]} 20. Kh3 {[%emt 0:00:59]} b5 {[%emt 0:11:15]} 21. c3 {[%emt 0:01:03]} c4 {[%emt 0:00:34]} 22. d4 {[%emt 0:00:46]} a5 {[%emt 0:00:13]} 23. Ng3 {[%emt 0:00:39]} Nxg3 {[%emt 0:01:07]} 24. Kxg3 {[%emt 0:01:13]} Qb6 {[%emt 0:02:36]} 25. Bd2 {[%emt 0:00:52]} Rfe8 {[%emt 0:00:29]} 26. Ra2 {[%emt 0:04:19]} Bf8 {[%emt 0:00:32]} 27. Rfa1 {[%emt 0:00:51]} Ra8 {[%emt 0:00:38]} 28. Qe1 {[%emt 0:00:38]} Reb8 {[%emt 0:00:07]} 29. Qf2 {[%emt 0:06:07]} Qb7 {[%emt 0:01:11]} 30. Qe1 {[%emt 0:00:49]} Qb6 {[%emt 0:00:42]} 31. Qf2 {[%emt 0:01:45]} Rb7 {[%emt 0:00:09]} 32. Qe1 {[%emt 0:02:52]} Rab8 {[%emt 0:00:12]} 33. Kf3 {[%emt 0:04:11]} b4 {[%emt 0:00:24]} 34. axb4 {[%emt 0:00:29]} axb4 {[%emt 0:00:12]} 35. Ra6 {[%emt 0:00:34]} Qc7 {[%emt 0:00:49]} 36. Ra8 {[%emt 0:03:47]} bxc3 {[%emt 0:09:21]} 37. bxc3 {[%emt 0:03:54]} Rb2 {[%emt 0:03:01]} 38. Rxb8 {[%emt 0:04:29]} Qxb8 {[%emt 0:00:02]} 39. Qc1 {[%emt 0:00:16]} Rb3 {[%emt 0:00:14]} 40. Ke3 {[%emt 0:01:28]} Qb6 {[%emt 0:01:30]} 41. Kf3 {[%emt 0:01:59]} Qxd4 {[%emt 0:00:42]} 42. Qe1 {[%emt 0:02:23]} Bc5 {[%emt 0:01:36]} 43. Rd1 {[%emt 0:03:04]} Qd3+ {[%emt 0:00:38]} 44. Kg2 {[%emt 0:00:39]} Rb2 {[%emt 0:02:39]} 0-1